[Event "Titled Tuesday Blitz June 21 Late 2022"]
[White "Adla, Diego"]
[Black "Vifleemskaia, Svetlana"]
[WhiteFideId "100072"]
[BlackFideId "4129490"]
[WhiteElo "2377"]
[BlackElo "1929"]
[Result "1-0"]
[Round "01"]
[TimeControl "180+1"]
[Date "2022.06.22"]
[WhiteClock "0:00:16"]
[BlackClock "0:00:04"]

1. e4 {[%clk 0:02:58]}  e5 {[%clk 0:02:56]} 2. Nf3 {[%clk 0:02:58]}  Nc6 {[%clk 0:02:55]} 3. d4 {[%clk 0:02:58]}  exd4 {[%clk 0:02:54]} 4. Nxd4 {[%clk 0:02:59]}  Bc5 {[%clk 0:02:54]} 5. Nb3 {[%clk 0:02:58]}  Bb6 {[%clk 0:02:54]} 6. Nc3 {[%clk 0:02:58]}  Nf6 {[%clk 0:02:54]} 7. Bg5 {[%clk 0:02:57]}  h6 {[%clk 0:02:54]} 8. Bh4 {[%clk 0:02:57]}  d6 {[%clk 0:02:54]} 9. Bb5 {[%clk 0:02:48]}  Be6 {[%clk 0:02:49]} 10. Qe2 {[%clk 0:02:37]}  g5 {[%clk 0:02:45]} 11. Bg3 {[%clk 0:02:37]}  Qe7 {[%clk 0:02:45]} 12. O-O-O {[%clk 0:02:33]}  a6 {[%clk 0:02:30]} 13. Bxc6+ {[%clk 0:02:32]}  bxc6 {[%clk 0:02:31]} 14. h4 {[%clk 0:02:28]}  g4 {[%clk 0:02:15]} 15. e5 {[%clk 0:02:21]}  Nd5 {[%clk 0:02:06]} 16. Ne4 {[%clk 0:02:08]}  dxe5 {[%clk 0:01:53]} 17. Bxe5 {[%clk 0:02:08]}  f6 {[%clk 0:01:44]} 18. Bg3 {[%clk 0:02:04]}  Kf7 {[%clk 0:01:35]} 19. Rhe1 {[%clk 0:01:51]}  Rhe8 {[%clk 0:01:23]} 20. Qd2 {[%clk 0:01:34]}  Kg7 {[%clk 0:01:17]} 21. c4 {[%clk 0:01:30]}  Nb4 {[%clk 0:01:05]} 22. a3 {[%clk 0:01:09]}  Bxc4 {[%clk 0:00:36]} 23. Nec5 {[%clk 0:01:08]}  Qf7 {[%clk 0:00:34]} 24. Qxb4 {[%clk 0:01:05]}  Rxe1 {[%clk 0:00:29]} 25. Rxe1 {[%clk 0:01:04]}  a5 {[%clk 0:00:20]} 26. Qa4 {[%clk 0:00:29]}  Rd8 {[%clk 0:00:10]} 27. Nd2 {[%clk 0:00:21]}  Ba2 {[%clk 0:00:07]} 28. Qxg4+ {[%clk 0:00:20]}  Kh8 {[%clk 0:00:06]} 29. Ne6 {[%clk 0:00:19]}  Rxd2 {[%clk 0:00:05]} 30. Kxd2 {[%clk 0:00:18]}  Qd7+ {[%clk 0:00:05]} 31. Kc1 {[%clk 0:00:17]}  Qd3 {[%clk 0:00:04]} 32. Qg7# {[%clk 0:00:16]} 1-0


[Site "https://www.chess.com"]

[Event "Titled Tuesday Blitz June 21 Late 2022"]
[White "Andreikin, Dmitry"]
[Black "Colpe, Malte"]
[WhiteFideId "4158814"]
[BlackFideId "24623075"]
[WhiteElo "2736"]
[BlackElo "2328"]
[Result "1-0"]
[Round "01"]
[TimeControl "180+1"]
[Date "2022.06.21"]
[WhiteClock "0:01:55"]
[BlackClock "0:00:02"]

1. d4 {[%clk 0:02:59]}  Nf6 {[%clk 0:02:57]} 2. c4 {[%clk 0:03:00]}  e6 {[%clk 0:02:55]} 3. Nf3 {[%clk 0:03:00]}  d5 {[%clk 0:02:54]} 4. g3 {[%clk 0:03:00]}  dxc4 {[%clk 0:02:52]} 5. Bg2 {[%clk 0:03:00]}  a6 {[%clk 0:02:52]} 6. O-O {[%clk 0:02:58]}  Nc6 {[%clk 0:02:51]} 7. Bg5 {[%clk 0:02:56]}  Be7 {[%clk 0:02:40]} 8. e3 {[%clk 0:02:55]}  Rb8 {[%clk 0:02:35]} 9. Nfd2 {[%clk 0:02:54]}  e5 {[%clk 0:02:20]} 10. Bxf6 {[%clk 0:02:36]}  Bxf6 {[%clk 0:02:18]} 11. d5 {[%clk 0:02:37]}  Ne7 {[%clk 0:02:06]} 12. Nxc4 {[%clk 0:02:37]}  O-O {[%clk 0:01:59]} 13. Nc3 {[%clk 0:02:31]}  Bf5 {[%clk 0:01:47]} 14. d6 {[%clk 0:02:27]}  cxd6 {[%clk 0:01:45]} 15. Nxd6 {[%clk 0:02:27]}  b5 {[%clk 0:01:33]} 16. Nxf5 {[%clk 0:02:22]}  Nxf5 {[%clk 0:01:34]} 17. Qf3 {[%clk 0:02:17]}  Nd6 {[%clk 0:01:17]} 18. Rfd1 {[%clk 0:02:17]}  Be7 {[%clk 0:00:52]} 19. Rac1 {[%clk 0:02:03]}  Rc8 {[%clk 0:00:39]} 20. Nd5 {[%clk 0:02:02]}  Rxc1 {[%clk 0:00:36]} 21. Rxc1 {[%clk 0:02:03]}  Bg5 {[%clk 0:00:26]} 22. h4 {[%clk 0:02:01]}  Bh6 {[%clk 0:00:19]} 23. Rc6 {[%clk 0:02:01]}  Nc4 {[%clk 0:00:12]} 24. b3 {[%clk 0:01:57]}  Nb2 {[%clk 0:00:02]} 25. Qe2 {[%clk 0:01:55]} 1-0


[Site "https://www.chess.com"]

[Event "Titled Tuesday Blitz June 21 Late 2022"]
[White "Baches Garcia, Guillermo"]
[Black "Corrales Jimenez, Fidel"]
[WhiteFideId "2209764"]
[BlackFideId "3506690"]
[WhiteElo "2461"]
[BlackElo "2820"]
[Result "1/2-1/2"]
[Round "01"]
[TimeControl "180+1"]
[Date "2022.06.22"]
[WhiteClock "0:00:13"]
[BlackClock "0:00:36"]

1. e4 {[%clk 0:03:00]}  c5 {[%clk 0:02:57]} 2. Nf3 {[%clk 0:03:00]}  d6 {[%clk 0:02:57]} 3. d4 {[%clk 0:02:59]}  cxd4 {[%clk 0:02:58]} 4. Nxd4 {[%clk 0:03:00]}  Nf6 {[%clk 0:02:59]} 5. Nc3 {[%clk 0:03:01]}  a6 {[%clk 0:02:59]} 6. Be3 {[%clk 0:02:59]}  e5 {[%clk 0:02:57]} 7. Nb3 {[%clk 0:02:59]}  Be6 {[%clk 0:02:57]} 8. f3 {[%clk 0:02:59]}  h5 {[%clk 0:02:57]} 9. Qd2 {[%clk 0:02:58]}  Nbd7 {[%clk 0:02:57]} 10. O-O-O {[%clk 0:02:56]}  Be7 {[%clk 0:02:57]} 11. Kb1 {[%clk 0:02:54]}  b5 {[%clk 0:02:56]} 12. Nd5 {[%clk 0:02:54]}  Bxd5 {[%clk 0:02:57]} 13. exd5 {[%clk 0:02:53]}  Nb6 {[%clk 0:02:56]} 14. Bxb6 {[%clk 0:02:49]}  Qxb6 {[%clk 0:02:57]} 15. Na5 {[%clk 0:02:49]}  O-O {[%clk 0:02:50]} 16. Nc6 {[%clk 0:02:43]}  Rae8 {[%clk 0:02:49]} 17. c4 {[%clk 0:02:25]}  bxc4 {[%clk 0:02:49]} 18. Bxc4 {[%clk 0:02:25]}  Nd7 {[%clk 0:02:48]} 19. g4 {[%clk 0:02:15]}  hxg4 {[%clk 0:02:48]} 20. fxg4 {[%clk 0:02:16]}  Nc5 {[%clk 0:02:47]} 21. Rhe1 {[%clk 0:02:04]}  Bh4 {[%clk 0:02:46]} 22. Re2 {[%clk 0:01:59]}  e4 {[%clk 0:02:38]} 23. Rf1 {[%clk 0:01:32]}  e3 {[%clk 0:02:34]} 24. Qd4 {[%clk 0:01:30]}  Re4 {[%clk 0:02:33]} 25. Qc3 {[%clk 0:01:10]}  Rfe8 {[%clk 0:02:30]} 26. b3 {[%clk 0:01:06]}  Nd7 {[%clk 0:02:06]} 27. Bd3 {[%clk 0:00:57]}  Nf6 {[%clk 0:01:43]} 28. Bxe4 {[%clk 0:00:50]}  Nxe4 {[%clk 0:01:44]} 29. Qxe3 {[%clk 0:00:42]}  Nc3+ {[%clk 0:01:36]} 30. Qxc3 {[%clk 0:00:40]}  Rxe2 {[%clk 0:01:37]} 31. Qf3 {[%clk 0:00:30]}  Re1+ {[%clk 0:01:06]} 32. Rxe1 {[%clk 0:00:19]}  Bxe1 {[%clk 0:01:07]} 33. Ne7+ {[%clk 0:00:16]}  Kf8 {[%clk 0:01:02]} 34. Ng6+ {[%clk 0:00:14]}  Kg8 {[%clk 0:01:03]} 35. Ne7+ {[%clk 0:00:13]}  Kf8 {[%clk 0:01:00]} 36. Ng6+ {[%clk 0:00:14]}  Kg8 {[%clk 0:00:36]} 37. Ne7+ {[%clk 0:00:13]} 1/2-1/2


[Site "https://www.chess.com"]

[Event "Titled Tuesday Blitz June 21 Late 2022"]
[White "Batsiashvili, Nino"]
[Black "Bluebaum, Matthias"]
[WhiteFideId "13602993"]
[BlackFideId "24651516"]
[WhiteElo "2149"]
[BlackElo "2556"]
[Result "0-1"]
[Round "01"]
[TimeControl "180+1"]
[Date "2022.06.21"]
[WhiteClock "0:02:18"]
[BlackClock "0:01:59"]

1. d4 {[%clk 0:03:00]}  Nf6 {[%clk 0:02:58]} 2. c4 {[%clk 0:03:01]}  e6 {[%clk 0:02:58]} 3. Nc3 {[%clk 0:03:01]}  d5 {[%clk 0:02:58]} 4. Nf3 {[%clk 0:03:01]}  Bb4 {[%clk 0:02:58]} 5. Qa4+ {[%clk 0:03:01]}  Nc6 {[%clk 0:02:57]} 6. a3 {[%clk 0:03:01]}  Bxc3+ {[%clk 0:02:57]} 7. bxc3 {[%clk 0:03:01]}  Bd7 {[%clk 0:02:57]} 8. cxd5 {[%clk 0:02:57]}  exd5 {[%clk 0:02:57]} 9. Qc2 {[%clk 0:02:57]}  Na5 {[%clk 0:02:57]} 10. Bg5 {[%clk 0:02:55]}  h6 {[%clk 0:02:57]} 11. Bh4 {[%clk 0:02:55]}  c5 {[%clk 0:02:57]} 12. dxc5 {[%clk 0:02:54]}  Rc8 {[%clk 0:02:51]} 13. e3 {[%clk 0:02:54]}  Rxc5 {[%clk 0:02:50]} 14. Bd3 {[%clk 0:02:55]}  O-O {[%clk 0:02:47]} 15. O-O {[%clk 0:02:51]}  Re8 {[%clk 0:02:23]} 16. Nd4 {[%clk 0:02:46]}  g5 {[%clk 0:02:07]} 17. Bg3 {[%clk 0:02:44]}  Ne4 {[%clk 0:02:08]} 18. Rac1 {[%clk 0:02:18]}  Rxc3 {[%clk 0:02:06]} 19. Qb2 {[%clk 0:02:18]}  Rxd3 {[%clk 0:01:59]} 0-1


[Site "https://www.chess.com"]

[Event "Titled Tuesday Blitz June 21 Late 2022"]
[White "Bjelobrk, Igor"]
[Black "Sadilek, Peter"]
[WhiteFideId "4300726"]
[BlackFideId "1616439"]
[WhiteElo "2335"]
[BlackElo "2145"]
[Result "1-0"]
[Round "01"]
[TimeControl "180+1"]
[Date "2022.06.22"]
[WhiteClock "0:00:22"]
[BlackClock "0:00:18"]

1. Nf3 {[%clk 0:02:57]}  Nf6 {[%clk 0:02:59]} 2. g3 {[%clk 0:02:53]}  e6 {[%clk 0:02:58]} 3. Bg2 {[%clk 0:02:53]}  d5 {[%clk 0:02:59]} 4. O-O {[%clk 0:02:52]}  Be7 {[%clk 0:03:00]} 5. d3 {[%clk 0:02:52]}  O-O {[%clk 0:03:01]} 6. Nbd2 {[%clk 0:02:52]}  Nc6 {[%clk 0:03:00]} 7. e4 {[%clk 0:02:51]}  dxe4 {[%clk 0:03:01]} 8. dxe4 {[%clk 0:02:51]}  e5 {[%clk 0:03:01]} 9. c3 {[%clk 0:02:50]}  a5 {[%clk 0:02:59]} 10. a4 {[%clk 0:02:49]}  Bc5 {[%clk 0:02:56]} 11. Qe2 {[%clk 0:02:43]}  b6 {[%clk 0:02:56]} 12. Nc4 {[%clk 0:02:39]}  Ba6 {[%clk 0:02:56]} 13. b3 {[%clk 0:02:39]}  Qe7 {[%clk 0:02:52]} 14. Nh4 {[%clk 0:02:36]}  Qe6 {[%clk 0:02:47]} 15. Nf5 {[%clk 0:02:33]}  Rfd8 {[%clk 0:02:17]} 16. Bg5 {[%clk 0:02:30]}  g6 {[%clk 0:02:09]} 17. Nh6+ {[%clk 0:02:28]}  Kg7 {[%clk 0:02:09]} 18. Kh1 {[%clk 0:02:09]}  Be7 {[%clk 0:02:01]} 19. f4 {[%clk 0:02:04]}  exf4 {[%clk 0:01:48]} 20. gxf4 {[%clk 0:02:02]}  Bxc4 {[%clk 0:01:36]} 21. bxc4 {[%clk 0:02:01]}  Nh5 {[%clk 0:01:23]} 22. Nf5+ {[%clk 0:01:10]}  gxf5 {[%clk 0:01:09]} 23. Qxh5 {[%clk 0:01:09]}  Qg6 {[%clk 0:00:50]} 24. Qxg6+ {[%clk 0:01:07]}  hxg6 {[%clk 0:00:49]} 25. exf5 {[%clk 0:01:08]}  Bxg5 {[%clk 0:00:44]} 26. Bxc6 {[%clk 0:00:58]}  Bf6 {[%clk 0:00:44]} 27. Bxa8 {[%clk 0:00:58]}  Rxa8 {[%clk 0:00:45]} 28. fxg6 {[%clk 0:00:58]}  Kxg6 {[%clk 0:00:45]} 29. Rf3 {[%clk 0:00:56]}  Kf5 {[%clk 0:00:43]} 30. Rd1 {[%clk 0:00:56]}  Re8 {[%clk 0:00:34]} 31. Rd7 {[%clk 0:00:53]}  Re1+ {[%clk 0:00:31]} 32. Kg2 {[%clk 0:00:53]}  Re2+ {[%clk 0:00:29]} 33. Rf2 {[%clk 0:00:53]}  Re4 {[%clk 0:00:28]} 34. Rxc7 {[%clk 0:00:49]}  Bxc3 {[%clk 0:00:28]} 35. Rxf7+ {[%clk 0:00:49]}  Ke6 {[%clk 0:00:28]} 36. Rf8 {[%clk 0:00:38]}  Rxc4 {[%clk 0:00:28]} 37. f5+ {[%clk 0:00:37]}  Ke7 {[%clk 0:00:28]} 38. Rg8 {[%clk 0:00:33]}  Bf6 {[%clk 0:00:28]} 39. Rb8 {[%clk 0:00:27]}  Rg4+ {[%clk 0:00:27]} 40. Kf1 {[%clk 0:00:26]}  Rxa4 {[%clk 0:00:24]} 41. Rxb6 {[%clk 0:00:25]}  Re4 {[%clk 0:00:19]} 42. Re2 {[%clk 0:00:21]}  Rxe2 {[%clk 0:00:18]} 43. Kxe2 {[%clk 0:00:22]}  Bc3 {[%clk 0:00:18]} 44. Ra6 {[%clk 0:00:22]}  Kf7 {[%clk 0:00:18]} 45. Kf3 {[%clk 0:00:22]} 1-0


[Site "https://www.chess.com"]

[Event "Titled Tuesday Blitz June 21 Late 2022"]
[White "Cappelletto, Joshuaede"]
[Black "Clarke, Brandon G I"]
[WhiteFideId "2824383"]
[BlackFideId "400319"]
[WhiteElo "2457"]
[BlackElo "2797"]
[Result "0-1"]
[Round "01"]
[TimeControl "180+1"]
[Date "2022.06.22"]
[WhiteClock "0:02:13"]
[BlackClock "0:02:39"]

1. Nf3 {[%clk 0:02:59]}  Nf6 {[%clk 0:02:59]} 2. g3 {[%clk 0:02:58]}  g6 {[%clk 0:03:00]} 3. Bg2 {[%clk 0:02:58]}  Bg7 {[%clk 0:03:01]} 4. O-O {[%clk 0:02:59]}  O-O {[%clk 0:03:01]} 5. c4 {[%clk 0:02:58]}  d6 {[%clk 0:03:01]} 6. Nc3 {[%clk 0:02:54]}  e5 {[%clk 0:03:02]} 7. d3 {[%clk 0:02:52]}  Nc6 {[%clk 0:03:02]} 8. Rb1 {[%clk 0:02:51]}  a5 {[%clk 0:03:02]} 9. a3 {[%clk 0:02:51]}  Nd4 {[%clk 0:03:02]} 10. Nxd4 {[%clk 0:02:43]}  exd4 {[%clk 0:03:03]} 11. Nd5 {[%clk 0:02:31]}  Nd7 {[%clk 0:02:58]} 12. e3 {[%clk 0:02:31]}  c6 {[%clk 0:02:55]} 13. Nf4 {[%clk 0:02:31]}  a4 {[%clk 0:02:51]} 14. exd4 {[%clk 0:02:25]}  Bxd4 {[%clk 0:02:52]} 15. Ne2 {[%clk 0:02:24]}  Bg7 {[%clk 0:02:48]} 16. Bf4 {[%clk 0:02:25]}  Nc5 {[%clk 0:02:46]} 17. d4 {[%clk 0:02:20]}  Nb3 {[%clk 0:02:46]} 18. Be3 {[%clk 0:02:17]}  Bf5 {[%clk 0:02:45]} 19. Rc1 {[%clk 0:02:12]}  Nxc1 {[%clk 0:02:41]} 20. Qxc1 {[%clk 0:02:13]}  Re8 {[%clk 0:02:40]} 21. Nc3 {[%clk 0:02:13]}  Bd3 {[%clk 0:02:39]} 0-1


[Site "https://www.chess.com"]

[Event "Titled Tuesday Blitz June 21 Late 2022"]
[White "Dauner, Benedikt"]
[Black "Kupervaser, Erez"]
[WhiteFideId "16225899"]
[BlackFideId "2814587"]
[WhiteElo "2230"]
[BlackElo "1832"]
[Result "1-0"]
[Round "01"]
[TimeControl "180+1"]
[Date "2022.06.22"]
[WhiteClock "0:00:58"]
[BlackClock "0:00:41"]

1. b3 {[%clk 0:03:00]}  Nf6 {[%clk 0:02:57]} 2. Bb2 {[%clk 0:03:01]}  g6 {[%clk 0:02:57]} 3. Bxf6 {[%clk 0:03:00]}  exf6 {[%clk 0:02:58]} 4. c4 {[%clk 0:03:01]}  f5 {[%clk 0:02:58]} 5. Nc3 {[%clk 0:03:01]}  Bg7 {[%clk 0:02:59]} 6. Rc1 {[%clk 0:03:02]}  O-O {[%clk 0:02:59]} 7. g3 {[%clk 0:03:02]}  d6 {[%clk 0:03:00]} 8. Bg2 {[%clk 0:03:02]}  c6 {[%clk 0:02:59]} 9. e3 {[%clk 0:03:02]}  Nd7 {[%clk 0:03:00]} 10. Nge2 {[%clk 0:03:02]}  Nf6 {[%clk 0:03:00]} 11. O-O {[%clk 0:03:02]}  h5 {[%clk 0:03:00]} 12. d3 {[%clk 0:02:53]}  h4 {[%clk 0:02:54]} 13. b4 {[%clk 0:02:50]}  Bd7 {[%clk 0:02:50]} 14. a4 {[%clk 0:02:49]}  hxg3 {[%clk 0:02:42]} 15. hxg3 {[%clk 0:02:50]}  Ng4 {[%clk 0:02:43]} 16. Bf3 {[%clk 0:02:50]}  Qg5 {[%clk 0:02:42]} 17. Kg2 {[%clk 0:02:44]}  Bf6 {[%clk 0:02:34]} 18. b5 {[%clk 0:02:42]}  Kg7 {[%clk 0:02:34]} 19. Rh1 {[%clk 0:02:39]}  Rh8 {[%clk 0:02:33]} 20. Qd2 {[%clk 0:02:39]}  Be5 {[%clk 0:02:26]} 21. d4 {[%clk 0:02:34]}  Bf6 {[%clk 0:02:26]} 22. a5 {[%clk 0:02:31]}  Rae8 {[%clk 0:02:25]} 23. a6 {[%clk 0:02:24]}  bxa6 {[%clk 0:01:44]} 24. bxc6 {[%clk 0:02:23]}  Bc8 {[%clk 0:01:43]} 25. Nd5 {[%clk 0:02:21]}  Be6 {[%clk 0:01:41]} 26. Nef4 {[%clk 0:02:11]}  Bxd5 {[%clk 0:01:40]} 27. Nxd5 {[%clk 0:02:12]}  Rh5 {[%clk 0:01:20]} 28. Rxh5 {[%clk 0:02:10]}  Qxh5 {[%clk 0:01:20]} 29. Rh1 {[%clk 0:02:09]}  Qg5 {[%clk 0:01:20]} 30. c7 {[%clk 0:02:06]}  Rc8 {[%clk 0:01:13]} 31. Rb1 {[%clk 0:01:50]}  Qh5 {[%clk 0:01:01]} 32. Bxg4 {[%clk 0:01:44]}  fxg4 {[%clk 0:01:00]} 33. Rb8 {[%clk 0:01:41]}  Qf5 {[%clk 0:00:54]} 34. Rxc8 {[%clk 0:01:39]}  Qxc8 {[%clk 0:00:55]} 35. Qb4 {[%clk 0:01:29]}  Qf5 {[%clk 0:00:54]} 36. Qxd6 {[%clk 0:01:10]}  Qf3+ {[%clk 0:00:51]} 37. Kg1 {[%clk 0:01:09]}  Bh4 {[%clk 0:00:41]} 38. gxh4 {[%clk 0:00:58]} 1-0


[Site "https://www.chess.com"]

[Event "Titled Tuesday Blitz June 21 Late 2022"]
[White "Di Nicolantonio, Lucas"]
[Black "Hansen, Eric"]
[WhiteFideId "680460"]
[BlackFideId "2606771"]
[WhiteElo "2381"]
[BlackElo "2568"]
[Result "0-1"]
[Round "01"]
[TimeControl "180+1"]
[Date "2022.06.21"]
[WhiteClock "0:00:12"]
[BlackClock "0:00:36"]

1. Nf3 {[%clk 0:02:59]}  d5 {[%clk 0:02:59]} 2. c4 {[%clk 0:02:59]}  e6 {[%clk 0:02:59]} 3. b3 {[%clk 0:02:56]}  Nf6 {[%clk 0:02:57]} 4. Bb2 {[%clk 0:02:57]}  Be7 {[%clk 0:02:54]} 5. e3 {[%clk 0:02:54]}  O-O {[%clk 0:02:53]} 6. Nc3 {[%clk 0:02:51]}  a6 {[%clk 0:02:47]} 7. d4 {[%clk 0:02:47]}  b6 {[%clk 0:02:43]} 8. cxd5 {[%clk 0:02:43]}  exd5 {[%clk 0:02:41]} 9. Bd3 {[%clk 0:02:42]}  Bb7 {[%clk 0:02:42]} 10. O-O {[%clk 0:02:43]}  Nbd7 {[%clk 0:02:42]} 11. Rc1 {[%clk 0:02:40]}  Bd6 {[%clk 0:02:42]} 12. Ne2 {[%clk 0:02:38]}  Re8 {[%clk 0:02:42]} 13. Ng3 {[%clk 0:02:38]}  g6 {[%clk 0:02:35]} 14. Rc2 {[%clk 0:02:29]}  Ne4 {[%clk 0:02:32]} 15. Qa1 {[%clk 0:02:26]}  h5 {[%clk 0:02:14]} 16. Ne5 {[%clk 0:02:19]}  Ndf6 {[%clk 0:02:12]} 17. Nxe4 {[%clk 0:02:13]}  dxe4 {[%clk 0:02:11]} 18. Bc4 {[%clk 0:02:08]}  Bd5 {[%clk 0:02:11]} 19. Rfc1 {[%clk 0:02:05]}  b5 {[%clk 0:02:10]} 20. Be2 {[%clk 0:01:56]}  Qc8 {[%clk 0:02:01]} 21. a4 {[%clk 0:01:54]}  Qe6 {[%clk 0:01:59]} 22. b4 {[%clk 0:01:42]}  Reb8 {[%clk 0:01:51]} 23. Nc6 {[%clk 0:01:38]}  Re8 {[%clk 0:01:40]} 24. a5 {[%clk 0:01:24]}  h4 {[%clk 0:01:31]} 25. h3 {[%clk 0:01:24]}  Bxc6 {[%clk 0:01:04]} 26. Rxc6 {[%clk 0:01:24]}  Nd5 {[%clk 0:01:04]} 27. Ba3 {[%clk 0:01:10]}  Qe7 {[%clk 0:01:02]} 28. Qb2 {[%clk 0:00:50]}  Qg5 {[%clk 0:01:01]} 29. Qd2 {[%clk 0:00:46]}  Red8 {[%clk 0:00:59]} 30. Bf1 {[%clk 0:00:28]}  Kg7 {[%clk 0:00:58]} 31. Qe2 {[%clk 0:00:28]}  f5 {[%clk 0:00:52]} 32. R1c5 {[%clk 0:00:22]}  Bxc5 {[%clk 0:00:51]} 33. dxc5 {[%clk 0:00:22]}  Kh6 {[%clk 0:00:48]} 34. Bb2 {[%clk 0:00:19]}  f4 {[%clk 0:00:41]} 35. exf4 {[%clk 0:00:17]}  Nxf4 {[%clk 0:00:42]} 36. Qxe4 {[%clk 0:00:17]}  Nxh3+ {[%clk 0:00:42]} 37. Kh2 {[%clk 0:00:17]}  Nxf2 {[%clk 0:00:42]} 38. Qf3 {[%clk 0:00:13]}  Ng4+ {[%clk 0:00:42]} 39. Kh1 {[%clk 0:00:12]}  Rf8 {[%clk 0:00:36]} 0-1


[Site "https://www.chess.com"]

[Event "Titled Tuesday Blitz June 21 Late 2022"]
[White "Domingo Nunez, Alejandro"]
[Black "Hoffmann, Asa"]
[WhiteFideId "22245561"]
[BlackFideId "2001470"]
[WhiteElo "2215"]
[BlackElo "2117"]
[Result "1/2-1/2"]
[Round "01"]
[TimeControl "180+1"]
[Date "2022.06.22"]
[WhiteClock "0:00:04"]
[BlackClock "0:00:34"]

1. Nf3 {[%clk 0:03:00]}  d6 {[%clk 0:02:55]} 2. d4 {[%clk 0:03:00]}  Bg4 {[%clk 0:02:54]} 3. e4 {[%clk 0:02:58]}  Nf6 {[%clk 0:02:53]} 4. Nc3 {[%clk 0:02:59]}  c6 {[%clk 0:02:52]} 5. a4 {[%clk 0:02:57]}  e6 {[%clk 0:02:52]} 6. Bd3 {[%clk 0:02:56]}  d5 {[%clk 0:02:52]} 7. e5 {[%clk 0:02:56]}  Nfd7 {[%clk 0:02:52]} 8. h3 {[%clk 0:02:40]}  Bh5 {[%clk 0:02:51]} 9. g4 {[%clk 0:02:32]}  Bg6 {[%clk 0:02:51]} 10. Ne2 {[%clk 0:02:30]}  c5 {[%clk 0:02:50]} 11. c3 {[%clk 0:02:30]}  Nc6 {[%clk 0:02:49]} 12. Bb5 {[%clk 0:02:29]}  Qc7 {[%clk 0:02:46]} 13. Nf4 {[%clk 0:02:27]}  a6 {[%clk 0:02:45]} 14. Be2 {[%clk 0:02:25]}  cxd4 {[%clk 0:02:44]} 15. Nxg6 {[%clk 0:02:22]}  hxg6 {[%clk 0:02:41]} 16. cxd4 {[%clk 0:02:22]}  Bb4+ {[%clk 0:02:36]} 17. Kf1 {[%clk 0:02:23]}  O-O-O {[%clk 0:02:32]} 18. Kg2 {[%clk 0:02:21]}  Kb8 {[%clk 0:02:31]} 19. Bf4 {[%clk 0:02:11]}  f6 {[%clk 0:02:25]} 20. Rc1 {[%clk 0:02:10]}  fxe5 {[%clk 0:02:22]} 21. Nxe5 {[%clk 0:02:09]}  Ndxe5 {[%clk 0:02:19]} 22. Bxe5 {[%clk 0:01:58]}  Bd6 {[%clk 0:02:19]} 23. Qb3 {[%clk 0:01:52]}  Ka8 {[%clk 0:02:10]} 24. Bxd6 {[%clk 0:01:08]}  Qxd6 {[%clk 0:02:09]} 25. Qb6 {[%clk 0:01:04]}  Nb8 {[%clk 0:01:51]} 26. Qa5 {[%clk 0:01:03]}  Rhf8 {[%clk 0:01:46]} 27. Qc7 {[%clk 0:00:51]}  Qxc7 {[%clk 0:01:37]} 28. Rxc7 {[%clk 0:00:52]}  Rf4 {[%clk 0:01:34]} 29. Rd1 {[%clk 0:00:50]}  Nc6 {[%clk 0:01:34]} 30. Rxg7 {[%clk 0:00:48]}  Rxd4 {[%clk 0:01:31]} 31. Rxg6 {[%clk 0:00:45]}  Rxd1 {[%clk 0:01:28]} 32. Bxd1 {[%clk 0:00:46]}  e5 {[%clk 0:01:26]} 33. h4 {[%clk 0:00:45]}  e4 {[%clk 0:01:26]} 34. h5 {[%clk 0:00:45]}  Ne5 {[%clk 0:01:24]} 35. Rg7 {[%clk 0:00:36]}  Rh8 {[%clk 0:01:16]} 36. Rg5 {[%clk 0:00:31]}  Nd3 {[%clk 0:01:10]} 37. Kg3 {[%clk 0:00:19]}  Nxb2 {[%clk 0:01:09]} 38. Bc2 {[%clk 0:00:20]}  Rc8 {[%clk 0:01:05]} 39. h6 {[%clk 0:00:18]}  Rh8 {[%clk 0:00:59]} 40. Rh5 {[%clk 0:00:17]}  Nc4 {[%clk 0:00:58]} 41. g5 {[%clk 0:00:11]}  Ne5 {[%clk 0:00:57]} 42. Kf4 {[%clk 0:00:11]}  Ng6+ {[%clk 0:00:54]} 43. Kf5 {[%clk 0:00:11]}  Ne7+ {[%clk 0:00:53]} 44. Ke6 {[%clk 0:00:11]}  Ng6 {[%clk 0:00:52]} 45. Kf6 {[%clk 0:00:11]}  Nf4 {[%clk 0:00:50]} 46. Rh4 {[%clk 0:00:09]}  Rf8+ {[%clk 0:00:43]} 47. Kg7 {[%clk 0:00:04]}  Ne6+ {[%clk 0:00:43]} 48. Kh7 {[%clk 0:00:05]}  Nxg5+ {[%clk 0:00:42]} 49. Kg6 {[%clk 0:00:05]}  Ne6 {[%clk 0:00:42]} 50. Kh7 {[%clk 0:00:05]}  d4 {[%clk 0:00:41]} 51. Bxe4 {[%clk 0:00:04]}  Ng5+ {[%clk 0:00:40]} 52. Kg6 {[%clk 0:00:04]}  Nxe4 {[%clk 0:00:40]} 53. Rxe4 {[%clk 0:00:05]}  Rxf2 {[%clk 0:00:39]} 54. h7 {[%clk 0:00:05]}  Rh2 {[%clk 0:00:39]} 55. Re8+ {[%clk 0:00:05]}  Ka7 {[%clk 0:00:39]} 56. h8=Q {[%clk 0:00:06]}  Rxh8 {[%clk 0:00:38]} 57. Rxh8 {[%clk 0:00:07]}  b5 {[%clk 0:00:38]} 58. axb5 {[%clk 0:00:07]}  axb5 {[%clk 0:00:38]} 59. Rd8 {[%clk 0:00:08]}  Kb6 {[%clk 0:00:38]} 60. Kf5 {[%clk 0:00:09]}  Kc5 {[%clk 0:00:36]} 61. Ke4 {[%clk 0:00:09]}  b4 {[%clk 0:00:36]} 62. Rd5+ {[%clk 0:00:10]}  Kc4 {[%clk 0:00:36]} 63. Rxd4+ {[%clk 0:00:10]}  Kc3 {[%clk 0:00:36]} 64. Rd3+ {[%clk 0:00:10]}  Kc2 {[%clk 0:00:36]} 65. Rh3 {[%clk 0:00:07]}  b3 {[%clk 0:00:36]} 66. Rh2+ {[%clk 0:00:08]}  Kc3 {[%clk 0:00:36]} 67. Rh3+ {[%clk 0:00:06]}  Kc2 {[%clk 0:00:35]} 68. Kd4 {[%clk 0:00:06]}  b2 {[%clk 0:00:35]} 69. Rh2+ {[%clk 0:00:07]}  Kb3 {[%clk 0:00:35]} 70. Rh1 {[%clk 0:00:07]}  Ka2 {[%clk 0:00:34]} 71. Rh2 {[%clk 0:00:07]}  Ka1 {[%clk 0:00:34]} 72. Rxb2 {[%clk 0:00:04]}  Kxb2 {[%clk 0:00:34]} 1/2-1/2


[Site "https://www.chess.com"]